fUSD/lending_fUSD_20260612
["ID","MTS","AMOUNT","RATE_DAILY","PERIOD"]
[424895825,1781253042000,-1529.75,0.00013698,2]
[424895776,1781253042000,-500.0,0.00013698,2]
[424895829,1781253042000,-1529.75,0.00013698,2]
[424895860,1781253042000,-500.0,0.00013698,2]
[424895863,1781253042000,-500.0,0.00013698,2]
[424895861,1781253042000,-500.0,0.00013698,2]
[424895865,1781253042000,-500.0,0.00013698,2]
[424895867,1781253042000,-500.0,0.00013698,2]
[424895868,1781253042000,-531.05929864,0.00013698,2]
[424895866,1781253042000,-500.0,0.00013698,2]
[424895871,1781253042000,-281.6,0.00013699,2]
[424895873,1781253042000,-195.55,0.00013699,2]
[424895875,1781253042000,-814.83,0.00013699,2]
[424895872,1781253042000,-234.66,0.00013699,2]
[424895876,1781253042000,-200.0,0.00013699,2]
[424895878,1781253042000,-2000.0,0.00013699,2]
[424895877,1781253042000,-151.0,0.00013699,2]
[424895880,1781253042000,-150.0,0.000137,2]
[424895882,1781253042000,-150.0,0.000137,2]
[424895883,1781253042000,-278.72170502,0.000137,2]
[424895879,1781253042000,-150.0,0.000137,2]
[424895881,1781253042000,-150.0,0.000137,2]
[424895885,1781253042000,-211.334403,0.00013702,2]
[424895886,1781253042000,-433.0,0.0001371,2]
[424895884,1781253042000,-163.69,0.000137,2]
[424895824,1781253042000,-1529.75,0.00013698,2]
[424895870,1781253042000,-337.92,0.00013699,2]
[424895858,1781253042000,-500.0,0.00013698,2]
[424895874,1781253042000,-162.96,0.00013699,2]
[424895859,1781253042000,-500.0,0.00013698,2]
[424895833,1781253042000,-1529.75,0.00013698,2]
[424895869,1781253042000,-2500.0,0.00013699,2]
[424895832,1781253042000,-1529.75,0.00013698,2]
[424895834,1781253042000,-1529.75,0.00013698,2]
[424895835,1781253042000,-1529.75,0.00013698,2]
[424895831,1781253042000,-1529.75,0.00013698,2]
[424895837,1781253042000,-1529.75,0.00013698,2]
[424895839,1781253042000,-1529.75,0.00013698,2]
[424895840,1781253042000,-1529.75,0.00013698,2]
[424895830,1781253042000,-1529.75,0.00013698,2]
[424895838,1781253042000,-1529.75,0.00013698,2]
[424895841,1781253042000,-1529.75,0.00013698,2]
[424895836,1781253042000,-1529.75,0.00013698,2]
[424895849,1781253042000,-172.1676913,0.00013698,2]
[424895851,1781253042000,-500.0,0.00013698,2]
[424895846,1781253042000,-1529.75,0.00013698,2]
[424895852,1781253042000,-500.0,0.00013698,2]
[424895847,1781253042000,-1529.78918085,0.00013698,2]
[424895850,1781253042000,-500.0,0.00013698,2]
[424895857,1781253042000,-500.0,0.00013698,2]
[424895848,1781253042000,-500.0,0.00013698,2]
[424895856,1781253042000,-500.0,0.00013698,2]
[424895855,1781253042000,-500.0,0.00013698,2]
[424895844,1781253042000,-1529.75,0.00013698,2]
[424895853,1781253042000,-500.0,0.00013698,2]
[424895922,1781253043000,-177.42306754,0.00013748,2]
[424895927,1781253043000,-500.0,0.00013748,2]
[424895925,1781253043000,-645.0,0.00013748,2]
[424895924,1781253043000,-500.0,0.00013748,2]
[424895917,1781253043000,-645.0,0.00013748,2]
[424895915,1781253043000,-645.0,0.00013748,2]
[424895923,1781253043000,-645.0,0.00013748,2]
[424895918,1781253043000,-645.0,0.00013748,2]
[424895916,1781253043000,-645.0,0.00013748,2]
[424895928,1781253043000,-150.0,0.00013748,2]
[424895933,1781253043000,-200.94003114,0.00013748,2]
[424895926,1781253043000,-500.0,0.00013748,2]
[424895944,1781253043000,-666.43843185,0.00013748,2]
[424895929,1781253043000,-645.0,0.00013748,2]
[424895932,1781253043000,-645.0,0.00013748,2]
[424895930,1781253043000,-532.61682043,0.00013748,2]
[424895934,1781253043000,-500.0,0.00013748,2]
[424895935,1781253043000,-645.0,0.00013748,2]
[424895938,1781253043000,-645.0,0.00013748,2]
[424895936,1781253043000,-345.62769669,0.00013748,2]
[424895937,1781253043000,-645.0,0.00013748,2]
[424895939,1781253043000,-645.0,0.00013748,2]
[424895943,1781253043000,-645.0,0.00013748,2]
[424895941,1781253043000,-645.0,0.00013748,2]
[424895913,1781253043000,-645.0,0.00013748,2]
[424895931,1781253043000,-500.0,0.00013748,2]
[424895914,1781253043000,-645.0,0.00013748,2]
[424895888,1781253043000,-150.0,0.00013737,2]
[424895910,1781253043000,-645.0,0.00013748,2]
[424895895,1781253043000,-500.0,0.00013748,2]
[424895896,1781253043000,-500.0,0.00013748,2]
[424895940,1781253043000,-645.0,0.00013748,2]
[424895887,1781253043000,-150.0,0.00013731,2]
[424895889,1781253043000,-500.0,0.00013741,2]
[424895890,1781253043000,-500.0,0.00013748,2]
[424895894,1781253043000,-500.0,0.00013748,2]
[424895891,1781253043000,-500.0,0.00013748,2]
[424895892,1781253043000,-500.0,0.00013748,2]
[424895897,1781253043000,-336.21909563,0.00013748,2]
[424895898,1781253043000,-500.0,0.00013748,2]
[424895908,1781253043000,-500.0,0.00013748,2]
[424895912,1781253043000,-645.0,0.00013748,2]
[424895900,1781253043000,-500.0,0.00013748,2]
[424895905,1781253043000,-500.0,0.00013748,2]
[424895901,1781253043000,-500.0,0.00013748,2]
[424895909,1781253043000,-235.71588977,0.00013748,2]
[424895899,1781253043000,-500.0,0.00013748,2]
[424895903,1781253043000,-500.0,0.00013748,2]
[424895907,1781253043000,-500.0,0.00013748,2]
[424895906,1781253043000,-500.0,0.00013748,2]
[424895904,1781253043000,-500.0,0.00013748,2]
[424895911,1781253043000,-645.0,0.00013748,2]
[424895919,1781253043000,-645.0,0.00013748,2]
[424895921,1781253043000,-500.0,0.00013748,2]
[424895920,1781253043000,-645.0,0.00013748,2]
[424895902,1781253043000,-500.0,0.00013748,2]
[424895942,1781253043000,-645.0,0.00013748,2]
[424895893,1781253043000,-500.0,0.00013748,2]
[424895947,1781253043000,-500.0,0.00013748,2]
[424895977,1781253043000,-500.0,0.00013748,2]
[424895976,1781253043000,-500.0,0.00013748,2]
[424895989,1781253043000,-500.0,0.00013748,2]
[424895988,1781253043000,-500.0,0.00013748,2]
[424895982,1781253043000,-500.0,0.00013748,2]
[424895990,1781253043000,-500.0,0.00013748,2]
[424895979,1781253043000,-500.0,0.00013748,2]
[424895980,1781253043000,-500.0,0.00013748,2]
[424895981,1781253043000,-500.0,0.00013748,2]
[424895984,1781253043000,-500.0,0.00013748,2]
[424895983,1781253043000,-500.0,0.00013748,2]
[424895986,1781253043000,-500.0,0.00013748,2]
[424895974,1781253043000,-500.0,0.00013748,2]
[424895987,1781253043000,-500.0,0.00013748,2]
[424895991,1781253043000,-500.0,0.00013748,2]
[424895992,1781253043000,-500.0,0.00013748,2]
[424895993,1781253043000,-387.05378598,0.00013748,2]
[424895994,1781253043000,-500.0,0.00013748,2]
[424895995,1781253043000,-500.0,0.00013748,2]
[424895996,1781253043000,-500.0,0.00013748,2]
[424895997,1781253043000,-448.29391775,0.00013748,2]
[424895999,1781253043000,-500.0,0.00013748,2]
[424896000,1781253043000,-500.0,0.00013748,2]
[424896001,1781253043000,-500.0,0.00013748,2]
[424896002,1781253043000,-500.0,0.00013748,2]
[424895945,1781253043000,-500.0,0.00013748,2]
[424895985,1781253043000,-500.0,0.00013748,2]
[424895972,1781253043000,-500.0,0.00013748,2]
[424895998,1781253043000,-500.0,0.00013748,2]
[424895975,1781253043000,-500.0,0.00013748,2]
[424895969,1781253043000,-500.0,0.00013748,2]
[424895949,1781253043000,-298.03737678,0.00013748,2]
[424895948,1781253043000,-500.0,0.00013748,2]
[424895955,1781253043000,-500.0,0.00013748,2]
[424895953,1781253043000,-150.0,0.00013748,2]
[424895946,1781253043000,-500.0,0.00013748,2]
[424895952,1781253043000,-374.13126552,0.00013748,2]
[424895951,1781253043000,-500.0,0.00013748,2]
[424895954,1781253043000,-166.72751158,0.00013748,2]
[424895966,1781253043000,-207.59558955,0.00013748,2]
[424895956,1781253043000,-500.0,0.00013748,2]
[424895957,1781253043000,-500.0,0.00013748,2]
[424895967,1781253043000,-500.0,0.00013748,2]
[424895950,1781253043000,-500.0,0.00013748,2]
[424895958,1781253043000,-209.60237317,0.00013748,2]
[424895959,1781253043000,-150.0,0.00013748,2]
[424895978,1781253043000,-500.0,0.00013748,2]
[424895968,1781253043000,-500.0,0.00013748,2]
[424895970,1781253043000,-500.0,0.00013748,2]
[424895965,1781253043000,-500.0,0.00013748,2]
[424895971,1781253043000,-500.0,0.00013748,2]
[424895964,1781253043000,-500.0,0.00013748,2]
[424895962,1781253043000,-171.42607717,0.00013748,2]
[424895961,1781253043000,-150.0,0.00013748,2]
[424895960,1781253043000,-150.0,0.00013748,2]
[424895963,1781253043000,-500.0,0.00013748,2]
[424895973,1781253043000,-614.41645061,0.00013748,2]
[424896031,1781253044000,-441.0,0.00013748,2]
[424896037,1781253044000,-441.0,0.00013748,2]
[424896030,1781253044000,-500.0,0.00013748,2]
[424896039,1781253044000,-441.0,0.00013748,2]
[424896027,1781253044000,-500.0,0.00013748,2]
[424896034,1781253044000,-285.06994889,0.00013748,2]
[424896032,1781253044000,-185.11145126,0.00013748,2]
[424896033,1781253044000,-441.0,0.00013748,2]
[424896035,1781253044000,-441.0,0.00013748,2]
[424896036,1781253044000,-441.0,0.00013748,2]
[424896049,1781253044000,-441.0,0.00013748,2]
[424896043,1781253044000,-441.0,0.00013748,2]
[424896046,1781253044000,-441.0,0.00013748,2]
[424896045,1781253044000,-441.0,0.00013748,2]
[424896041,1781253044000,-441.0,0.00013748,2]
[424896042,1781253044000,-441.0,0.00013748,2]
[424896048,1781253044000,-441.0,0.00013748,2]
[424896047,1781253044000,-441.0,0.00013748,2]
[424896044,1781253044000,-441.0,0.00013748,2]
[424896050,1781253044000,-458.85351328,0.00013748,2]
[424896051,1781253044000,-150.0,0.00013771,2]
[424896029,1781253044000,-150.0,0.00013748,2]
[424896040,1781253044000,-441.0,0.00013748,2]
[424896038,1781253044000,-441.0,0.00013748,2]
[424896015,1781253044000,-500.0,0.00013748,2]
[424896018,1781253044000,-500.0,0.00013748,2]
[424896053,1781253044000,-150.0,0.00013821,2]
[424896013,1781253044000,-500.0,0.00013748,2]
[424896003,1781253044000,-500.0,0.00013748,2]
[424896004,1781253044000,-500.0,0.00013748,2]
[424896007,1781253044000,-500.0,0.00013748,2]
[424896012,1781253044000,-500.0,0.00013748,2]
[424896005,1781253044000,-500.0,0.00013748,2]
[424896006,1781253044000,-500.0,0.00013748,2]
[424896011,1781253044000,-500.0,0.00013748,2]
[424896010,1781253044000,-500.0,0.00013748,2]
[424896009,1781253044000,-500.0,0.00013748,2]
[424896008,1781253044000,-500.0,0.00013748,2]
[424896014,1781253044000,-500.0,0.00013748,2]
[424896020,1781253044000,-563.23760691,0.00013748,2]
[424896025,1781253044000,-441.0,0.00013748,2]
[424896023,1781253044000,-441.0,0.00013748,2]
[424896024,1781253044000,-441.0,0.00013748,2]
[424896017,1781253044000,-313.2095384,0.00013748,2]
[424896021,1781253044000,-441.0,0.00013748,2]
[424896022,1781253044000,-441.0,0.00013748,2]
[424896026,1781253044000,-150.0,0.00013748,2]
[424896016,1781253044000,-502.73346068,0.00013748,2]
[424896019,1781253044000,-500.0,0.00013748,2]
[424896028,1781253044000,-441.0,0.00013748,2]
[424896052,1781253044000,-150.0,0.00013812,2]
[424896058,1781253044000,-43059.47341074,0.00013841,2]
[424896054,1781253044000,-150.0,0.00013821,2]
[424896081,1781253044000,-295.627326,0.00014008,2]
[424896085,1781253044000,-261.399427,0.00014078,2]
[424896088,1781253044000,-150.0,0.00014112,2]
[424896086,1781253044000,-194.488311,0.00014078,2]
[424896087,1781253044000,-150.0,0.00014095,2]
[424896094,1781253044000,-150.0,0.00014176,2]
[424896092,1781253044000,-150.0,0.00014154,2]
[424896089,1781253044000,-150.0,0.00014136,2]
[424896090,1781253044000,-43059.47341074,0.00014137,2]
[424896093,1781253044000,-150.0,0.00014154,2]
[424896082,1781253044000,-150.0,0.00014014,2]
[424896095,1781253044000,-465.71051319,0.00014216,2]
[424896099,1781253044000,-233.345874,0.00014225,2]
[424896097,1781253044000,-151.0,0.00014225,2]
[424896100,1781253044000,-233.345874,0.00014225,2]
[424896098,1781253044000,-233.345874,0.00014225,2]
[424896096,1781253044000,-150.0,0.00014217,2]
[424896104,1781253044000,-150.0,0.00014237,2]
[424896105,1781253044000,-150.0,0.00014237,2]
[424896103,1781253044000,-150.0,0.00014237,2]
[424896102,1781253044000,-334401.4810855,0.00014225,2]
[424896056,1781253044000,-169.87179599,0.00013825,2]
[424896101,1781253044000,-233.345874,0.00014225,2]
[424896083,1781253044000,-150.0,0.0001405,2]
[424896091,1781253044000,-21571.01925412,0.00014137,2]
[424896075,1781253044000,-150.0,0.00013987,2]
[424896060,1781253044000,-150.0,0.00013852,2]
[424896078,1781253044000,-32444.69653564,0.0001399,2]
[424896057,1781253044000,-587.0,0.00013841,2]
[424896059,1781253044000,-21571.01925412,0.00013841,2]
[424896055,1781253044000,-430.41251087,0.00013824,2]
[424896061,1781253044000,-150.0,0.00013862,2]
[424896062,1781253044000,-150.0,0.00013862,2]
[424896063,1781253044000,-3003.0,0.00013891,5]
[424896065,1781253044000,-4695.0,0.00013896,5]
[424896066,1781253044000,-3758.0,0.00013896,5]
[424896067,1781253044000,-11814.94945168,0.00013921,2]
[424896068,1781253044000,-150.0,0.00013933,2]
[424896064,1781253044000,-150.0,0.00013893,2]
[424896079,1781253044000,-500.0,0.00014,2]
[424896073,1781253044000,-151.0,0.00013987,2]
[424896069,1781253044000,-320.42857,0.00013938,2]
[424896071,1781253044000,-500.0,0.00013942,2]
[424896070,1781253044000,-266.348205,0.00013938,2]
[424896074,1781253044000,-150.0,0.00013987,2]
[424896077,1781253044000,-150.0,0.00013987,2]
[424896084,1781253044000,-150.0,0.00014055,2]
[424896076,1781253044000,-150.0,0.00013987,2]
[424896072,1781253044000,-150.0,0.00013974,2]
[424896080,1781253044000,-250.0,0.00014,2]
[424896144,1781253045000,-151.0,0.00014726,2]
[424896138,1781253045000,-150.0,0.00014653,2]
[424896139,1781253045000,-150.0,0.00014662,2]
[424896142,1781253045000,-3100.0,0.000147,5]
[424896136,1781253045000,-150.0,0.00014622,2]
[424896140,1781253045000,-1220.28,0.00014673,2]
[424896137,1781253045000,-150.0,0.00014653,2]
[424896135,1781253045000,-150.0,0.00014612,2]
[424896143,1781253045000,-150.0,0.00014703,2]
[424896141,1781253045000,-8606.72466713,0.000147,2]
[424896146,1781253045000,-150.0,0.00014737,2]
[424896155,1781253045000,-154.217,0.000148,2]
[424896156,1781253045000,-3100.0,0.000148,5]
[424896148,1781253045000,-6137.74864415,0.00014742,2]
[424896147,1781253045000,-2409.237,0.00014738,2]
[424896145,1781253045000,-747.0,0.00014728,2]
[424896149,1781253045000,-249.53545594,0.00014743,2]
[424896151,1781253045000,-747.0,0.00014765,2]
[424896154,1781253045000,-747.0,0.00014799,2]
[424896152,1781253045000,-150.0,0.00014784,2]
[424896153,1781253045000,-150.0,0.00014799,2]
[424896150,1781253045000,-150.0,0.00014743,2]
[424896132,1781253045000,-2000.0,0.000146,2]
[424896157,1781253045000,-74615.0560284,0.00014819,2]
[424896133,1781253045000,-3100.0,0.000146,5]
[424896106,1781253045000,-150.0,0.00014237,2]
[424896131,1781253045000,-150.0,0.00014581,2]
[424896158,1781253045000,-150.0,0.0001482,2]
[424896107,1781253045000,-150.0,0.00014257,2]
[424896112,1781253045000,-150.0,0.0001432,2]
[424896111,1781253045000,-150.0,0.0001432,2]
[424896113,1781253045000,-150.0,0.00014338,2]
[424896109,1781253045000,-3562.865,0.00014275,2]
[424896108,1781253045000,-419.0,0.00014275,2]
[424896110,1781253045000,-150.0,0.00014298,2]
[424896115,1781253045000,-430.41251087,0.00014362,2]
[424896114,1781253045000,-150.0,0.00014362,2]
[424896116,1781253045000,-150.0,0.00014379,2]
[424896134,1781253045000,-150.0,0.00014612,2]
[424896118,1781253045000,-150.0,0.00014419,2]
[424896121,1781253045000,-150.0,0.0001446,2]
[424896122,1781253045000,-150.0,0.00014487,2]
[424896124,1781253045000,-150.0,0.00014487,2]
[424896120,1781253045000,-150.0,0.00014424,2]
[424896119,1781253045000,-1510.91,0.00014423,2]
[424896126,1781253045000,-3100.0,0.000145,5]
[424896125,1781253045000,-150.0,0.00014487,2]
[424896127,1781253045000,-150.0,0.000145,2]
[424896129,1781253045000,-150.0,0.00014541,2]
[424896128,1781253045000,-1000.0,0.00014539,2]
[424896130,1781253045000,-10272.04265598,0.00014555,2]
[424896123,1781253045000,-150.0,0.00014487,2]
[424896160,1781253045000,-5800.0,0.00014823,2]
[424896117,1781253045000,-11814.94945168,0.00014411,2]
[424896166,1781253045000,-5800.0,0.00014841,2]
[424896190,1781253045000,-150.74848,0.0001485,2]
[424896196,1781253045000,-5800.0,0.00014874,2]
[424896191,1781253045000,-150.74849,0.0001485,2]
[424896193,1781253045000,-150.0,0.00014861,2]
[424896198,1781253045000,-200.0,0.00014879,2]
[424896200,1781253045000,-151.0,0.00014883,2]
[424896199,1781253045000,-5800.0,0.00014883,2]
[424896202,1781253045000,-5800.0,0.00014891,2]
[424896201,1781253045000,-250.87153082,0.0001489,2]
[424896203,1781253045000,-5800.0,0.00014891,2]
[424896206,1781253045000,-151.0,0.00014897,2]
[424896197,1781253045000,-200.0,0.00014876,2]
[424896207,1781253045000,-500.0,0.00014899,2]
[424896204,1781253045000,-3055.90724123,0.00014894,2]
[424896205,1781253045000,-154.60502456,0.00014897,2]
[424896208,1781253045000,-549.82,0.00014899,2]
[424896214,1781253045000,-500.0,0.00014899,2]
[424896209,1781253045000,-500.0,0.00014899,2]
[424896212,1781253045000,-1763.12,0.00014899,2]
[424896210,1781253045000,-923.27,0.00014899,2]
[424896211,1781253045000,-500.0,0.00014899,2]
[424896213,1781253045000,-1076.83830855,0.00014899,5]
[424896215,1781253045000,-500.0,0.00014899,2]
[424896216,1781253045000,-500.0,0.00014899,2]
[424896217,1781253045000,-500.0,0.00014899,2]
[424896192,1781253045000,-5800.0,0.00014858,2]
[424896161,1781253045000,-150.0,0.00014824,2]
[424896188,1781253045000,-5800.0,0.00014849,2]
[424896159,1781253045000,-150.0,0.0001482,2]
[424896162,1781253045000,-925.89,0.00014831,2]
[424896164,1781253045000,-500.0,0.00014831,2]
[424896163,1781253045000,-1540.46,0.00014831,2]
[424896169,1781253045000,-500.0,0.00014848,2]
[424896168,1781253045000,-923.27,0.00014848,2]
[424896186,1781253045000,-567.54,0.00014848,2]
[424896165,1781253045000,-5800.0,0.00014832,2]
[424896182,1781253045000,-360.35654585,0.00014848,2]
[424896171,1781253045000,-500.0,0.00014848,2]
[424896174,1781253045000,-500.0,0.00014848,2]
[424896178,1781253045000,-500.0,0.00014848,2]
[424896167,1781253045000,-549.82,0.00014848,2]
[424896177,1781253045000,-500.0,0.00014848,2]
[424896184,1781253045000,-500.0,0.00014848,2]
[424896170,1781253045000,-1763.12,0.00014848,2]
[424896173,1781253045000,-500.0,0.00014848,2]
[424896172,1781253045000,-238.7383011,0.00014848,2]
[424896180,1781253045000,-500.0,0.00014848,2]
[424896179,1781253045000,-564.37,0.00014848,2]
[424896187,1781253045000,-3153.69,0.00014848,2]
[424896194,1781253045000,-150.0,0.00014865,2]
[424896195,1781253045000,-5800.0,0.00014866,2]
[424896189,1781253045000,-150.74848,0.0001485,2]
[424896175,1781253045000,-500.0,0.00014848,2]
[424896256,1781253046000,-150.0,0.00014986,2]
[424896257,1781253046000,-500.0,0.00014988,2]
[424896254,1781253046000,-150.0,0.00014986,2]
[424896252,1781253046000,-150.0,0.00014986,2]
[424896246,1781253046000,-150.0,0.00014946,2]
[424896248,1781253046000,-151.0,0.00014986,2]
[424896247,1781253046000,-736.0,0.00014984,2]
[424896249,1781253046000,-150.0,0.00014986,2]
[424896250,1781253046000,-249.66496614,0.00014986,2]
[424896251,1781253046000,-282.8290565,0.00014986,2]
[424896260,1781253046000,-115976.93829048,0.00014989,2]
[424896271,1781253046000,-549.82,0.00014999,2]
[424896263,1781253046000,-169.12,0.00014997,2]
[424896255,1781253046000,-150.0,0.00014986,2]
[424896262,1781253046000,-250.87153082,0.0001499,2]
[424896258,1781253046000,-500.0,0.00014988,2]
[424896259,1781253046000,-500.0,0.00014988,2]
[424896264,1781253046000,-500.0,0.00014999,2]
[424896266,1781253046000,-549.82,0.00014999,2]
[424896267,1781253046000,-549.82,0.00014999,2]
[424896265,1781253046000,-500.0,0.00014999,2]
[424896268,1781253046000,-549.82,0.00014999,2]
[424896273,1781253046000,-549.82,0.00014999,2]
[424896245,1781253046000,-291.6690779,0.00014908,2]
[424896261,1781253046000,-30000.0,0.00014989,2]
[424896244,1781253046000,-150.0,0.00014905,2]
[424896234,1781253046000,-1255.15214129,0.000149,2]
[424896253,1781253046000,-193.79231313,0.00014986,2]
[424896270,1781253046000,-549.82,0.00014999,2]
[424896218,1781253046000,-500.0,0.00014899,2]
[424896220,1781253046000,-1540.46,0.00014899,2]
[424896222,1781253046000,-500.0,0.00014899,2]
[424896221,1781253046000,-500.0,0.00014899,2]
[424896223,1781253046000,-500.0,0.00014899,2]
[424896226,1781253046000,-500.0,0.00014899,2]
[424896229,1781253046000,-243055.43520343,0.000149,3]
[424896227,1781253046000,-567.54,0.00014899,2]
[424896224,1781253046000,-564.37,0.00014899,2]
[424896225,1781253046000,-500.0,0.00014899,2]
[424896242,1781253046000,-178.91034135,0.000149,2]
[424896228,1781253046000,-3153.69,0.00014899,2]
[424896233,1781253046000,-5800.0,0.000149,2]
[424896232,1781253046000,-430.41251087,0.000149,2]
[424896235,1781253046000,-151.0,0.000149,2]
[424896237,1781253046000,-233.345874,0.000149,2]
[424896236,1781253046000,-3800.0,0.000149,5]
[424896240,1781253046000,-233.345874,0.000149,2]
[424896239,1781253046000,-233.345874,0.000149,2]
[424896238,1781253046000,-233.345874,0.000149,2]
[424896241,1781253046000,-609.53752098,0.000149,2]
[424896231,1781253046000,-5800.0,0.000149,2]
[424896243,1781253046000,-11814.94945168,0.000149,2]
[424896230,1781253046000,-10831.59005543,0.000149,2]
[424896272,1781253046000,-549.82,0.00014999,2]
[424896219,1781253046000,-925.89,0.00014899,2]
[424896274,1781253046000,-549.82,0.00014999,2]
[424896301,1781253046000,-923.27,0.00014999,2]
[424896303,1781253046000,-923.27,0.00014999,2]
[424896302,1781253046000,-923.27,0.00014999,2]
[424896305,1781253046000,-923.27,0.00014999,2]
[424896307,1781253046000,-923.27,0.00014999,2]
[424896316,1781253046000,-923.27,0.00014999,2]
[424896317,1781253046000,-923.27,0.00014999,2]
[424896318,1781253046000,-923.27,0.00014999,2]
[424896319,1781253046000,-923.27,0.00014999,2]
[424896321,1781253046000,-923.27,0.00014999,2]
[424896325,1781253046000,-1060.04510718,0.00014999,5]
[424896315,1781253046000,-923.27,0.00014999,2]
[424896320,1781253046000,-923.27,0.00014999,2]
[424896324,1781253046000,-923.35,0.00014999,2]
[424896323,1781253046000,-923.27,0.00014999,2]
[424896322,1781253046000,-923.27,0.00014999,2]
[424896328,1781253046000,-500.0,0.00014999,2]
[424896327,1781253046000,-500.0,0.00014999,2]
[424896329,1781253046000,-500.0,0.00014999,2]
[424896330,1781253046000,-500.0,0.00014999,2]
[424896331,1781253046000,-500.0,0.00014999,2]
[424896332,1781253046000,-500.0,0.00014999,2]
[424896335,1781253046000,-500.0,0.00014999,2]
[424896333,1781253046000,-500.0,0.00014999,2]
[424896326,1781253046000,-500.0,0.00014999,2]
[424896314,1781253046000,-923.27,0.00014999,2]
[424896334,1781253046000,-500.0,0.00014999,2]
[424896299,1781253046000,-923.27,0.00014999,2]
[424896312,1781253046000,-923.27,0.00014999,2]
[424896276,1781253046000,-549.82,0.00014999,2]
[424896278,1781253046000,-549.82,0.00014999,2]
[424896283,1781253046000,-549.82,0.00014999,2]
[424896285,1781253046000,-549.82,0.00014999,2]
[424896284,1781253046000,-549.82,0.00014999,2]
[424896277,1781253046000,-549.82,0.00014999,2]
[424896281,1781253046000,-549.82,0.00014999,2]
[424896286,1781253046000,-549.82,0.00014999,2]
[424896280,1781253046000,-549.82,0.00014999,2]
[424896275,1781253046000,-549.82,0.00014999,2]
[424896279,1781253046000,-549.82,0.00014999,2]
[424896269,1781253046000,-549.82,0.00014999,2]
[424896287,1781253046000,-550.04339816,0.00014999,2]
[424896282,1781253046000,-549.82,0.00014999,2]
[424896310,1781253046000,-923.27,0.00014999,2]
[424896292,1781253046000,-500.0,0.00014999,2]
[424896294,1781253046000,-500.0,0.00014999,2]
[424896291,1781253046000,-500.0,0.00014999,2]
[424896300,1781253046000,-923.27,0.00014999,2]
[424896290,1781253046000,-500.0,0.00014999,2]
[424896298,1781253046000,-923.27,0.00014999,2]
[424896296,1781253046000,-287.06193287,0.00014999,2]
[424896288,1781253046000,-1063.13985874,0.00014999,5]
[424896289,1781253046000,-500.0,0.00014999,2]
[424896297,1781253046000,-923.27,0.00014999,2]
[424896361,1781253047000,-1763.12,0.00014999,2]
[424896367,1781253047000,-500.0,0.00014999,2]
[424896365,1781253047000,-1076.83830853,0.00014999,5]
[424896363,1781253047000,-1763.12,0.00014999,2]
[424896366,1781253047000,-500.0,0.00014999,2]
[424896368,1781253047000,-500.0,0.00014999,2]
[424896369,1781253047000,-500.0,0.00014999,2]
[424896376,1781253047000,-500.0,0.00014999,2]